fUSD/lending_fUSD_20240406
["ID","MTS","AMOUNT","RATE_DAILY","PERIOD"]
[321675344,1712377839221,-500.38550192,0.00024995,2]
[321675345,1712377839231,-500.0,0.00024995,2]
[321675346,1712377839240,-500.0,0.00024995,2]
[321675347,1712377839249,-500.0,0.00024995,2]
[321675348,1712377839258,-500.0,0.00024995,2]
[321675349,1712377839267,-500.0,0.00024995,2]
[321675350,1712377839275,-500.0,0.00024995,2]
[321675351,1712377839284,-500.0,0.00024995,2]
[321675352,1712377839294,-500.0,0.00024995,2]
[321675353,1712377839303,-500.0,0.00024995,2]
[321675354,1712377839312,-500.0,0.00024995,2]
[321675355,1712377839322,-500.0,0.00024995,2]
[321675356,1712377839331,-500.0,0.00024995,2]
[321675357,1712377839340,-500.0,0.00024995,2]
[321675358,1712377839349,-500.0,0.00024995,2]
[321675359,1712377839358,-205.20297206,0.00024995,2]
[321675360,1712377839368,-500.0,0.00024995,2]
[321675361,1712377839377,-513.63322311,0.00024995,2]
[321675362,1712377839386,-500.0,0.00024995,2]
[321675363,1712377839395,-617.05,0.00024995,2]
[321675364,1712377839404,-500.0,0.00024995,2]
[321675365,1712377839414,-523.73991543,0.00024995,2]
[321675366,1712377839423,-1000.0,0.00024995,5]
[321675367,1712377839431,-500.0,0.00024995,2]
[321675368,1712377839440,-500.0,0.00024995,2]
[321675369,1712377839449,-500.0,0.00024995,2]
[321675370,1712377839458,-500.0,0.00024995,2]
[321675371,1712377839467,-1004.36929448,0.00024995,2]
[321675372,1712377839476,-22440.35039813,0.00024996,2]
[321675373,1712377839486,-673.03775094,0.00024996,2]
[321675374,1712377839495,-1598.856489,0.00024996,2]
[321675375,1712377839504,-904.49730073,0.00024996,2]
[321675376,1712377839513,-369.02186392,0.00024996,2]
[321675377,1712377839522,-499.9930608,0.00024996,2]
[321675378,1712377839531,-715.33936872,0.00024996,2]
[321675379,1712377839540,-150.0,0.00024996,2]
[321675380,1712377839550,-151.02137916,0.00024997,2]
[321675381,1712377839559,-5822.10587372,0.00024997,2]
[321675382,1712377839568,-500.0,0.00024997,2]
[321675383,1712377839578,-500.0,0.00024997,2]
[321675384,1712377839587,-617.05,0.00024997,2]
[321675385,1712377839595,-617.05,0.00024997,2]
[321675386,1712377839605,-500.0,0.00024997,2]
[321675387,1712377839614,-500.0,0.00024997,2]
[321675388,1712377839624,-500.0,0.00024997,2]
[321675389,1712377839633,-500.0,0.00024997,2]
[321675390,1712377839642,-500.0,0.00024997,2]
[321675391,1712377839651,-500.0,0.00024997,2]
[321675392,1712377839660,-500.0,0.00024997,2]
[321675393,1712377839669,-620.83,0.00024997,2]
[321675394,1712377839678,-620.83,0.00024997,2]
[321675395,1712377839687,-620.83,0.00024997,2]
[321675396,1712377839696,-459.22788096,0.00024997,2]
[321675397,1712377839705,-500.0,0.00024997,2]
[321675398,1712377839714,-500.0,0.00024997,2]
[321675399,1712377839723,-500.0,0.00024997,2]
[321675400,1712377839733,-808.32283159,0.00024997,5]
[321675401,1712377839742,-500.0,0.00024997,2]
[321675402,1712377839751,-500.0,0.00024997,2]
[321675403,1712377839760,-500.0,0.00024997,2]
[321675404,1712377839769,-500.0,0.00024997,2]
[321675405,1712377839778,-500.0,0.00024997,2]
[321675406,1712377839786,-379.96142503,0.00024997,2]
[321675407,1712377839796,-500.0,0.00024997,2]
[321675408,1712377839805,-169.40618809,0.00024997,2]
[321675409,1712377839815,-480.40352297,0.00024997,2]
[321675410,1712377839824,-500.0,0.00024997,2]
[321675411,1712377839834,-500.0,0.00024997,2]
[321675412,1712377839843,-521.73654292,0.00024997,2]
[321675413,1712377839852,-500.0,0.00024997,2]
[321675414,1712377839861,-500.0,0.00024997,2]
[321675415,1712377839871,-500.0,0.00024997,2]
[321675416,1712377839880,-500.0,0.00024997,2]
[321675417,1712377839890,-500.0,0.00024997,2]
[321675418,1712377839900,-244.91797075,0.00024998,2]
[321675419,1712377839909,-618.52079175,0.00024998,2]
[321675420,1712377839921,-862.52436459,0.00024998,2]
[321675421,1712377839932,-289.95834888,0.00024998,2]
[321675422,1712377839942,-55057.15810986,0.00024998,3]
[321675423,1712377839952,-206.94638101,0.00024998,2]
[321675424,1712377839962,-155.30022436,0.00024998,3]
[321675425,1712377839971,-27517.83927645,0.00024998,2]
[321675426,1712377839981,-510198.53116186,0.00024998,2]
[321675427,1712377839990,-324.60496245,0.00024998,2]
[321675428,1712377839999,-151.0,0.00024998,7]
[321675429,1712377840008,-151.0,0.00024998,7]
[321675430,1712377840018,-151.0,0.00024998,7]
[321675431,1712377840028,-203.425809,0.00024998,7]
[321675432,1712377840037,-151.0,0.00024998,7]
[321675433,1712377840048,-151.0,0.00024998,7]
[321675434,1712377840057,-198.808468,0.00024998,7]
[321675435,1712377840066,-173.744499,0.00024998,7]
[321675436,1712377840075,-168.892886,0.00024998,7]
[321675437,1712377840085,-151.0,0.00024998,7]
[321675438,1712377840095,-168.892886,0.00024998,7]
[321675439,1712377840105,-173.744499,0.00024998,7]
[321675440,1712377840115,-151.0,0.00024998,7]
[321675441,1712377840125,-151.0,0.00024998,7]
[321675442,1712377840137,-151.0,0.00024998,7]
[321675443,1712377840151,-151.0,0.00024998,7]
[321675444,1712377840162,-151.0,0.00024998,7]
[321675445,1712377840173,-151.0,0.00024998,7]
[321675446,1712377840185,-151.0,0.00024998,7]
[321675447,1712377840194,-151.0,0.00024998,7]
[321675448,1712377840203,-151.0,0.00024998,7]
[321675449,1712377840213,-151.0,0.00024998,7]
[321675450,1712377840223,-151.0,0.00024998,7]
[321675451,1712377840233,-151.0,0.00024998,7]
[321675452,1712377840243,-151.0,0.00024998,7]
[321675453,1712377840255,-151.0,0.00024998,7]
[321675454,1712377840265,-151.0,0.00024998,7]
[321675455,1712377840274,-151.0,0.00024998,7]
[321675456,1712377840284,-151.0,0.00024998,7]
[321675457,1712377840294,-151.0,0.00024998,7]
[321675458,1712377840303,-151.0,0.00024998,7]
[321675459,1712377840312,-151.0,0.00024998,7]
[321675460,1712377840323,-151.0,0.00024998,7]
[321675461,1712377840333,-151.0,0.00024998,7]
[321675462,1712377840342,-151.0,0.00024998,7]
[321675463,1712377840351,-151.0,0.00024998,7]
[321675464,1712377840360,-154.001345,0.00024998,7]
[321675465,1712377840369,-151.0,0.00024998,7]
[321675466,1712377840378,-151.0,0.00024998,7]
[321675467,1712377840388,-151.0,0.00024998,7]
[321675468,1712377840397,-151.0,0.00024998,7]
[321675469,1712377840406,-151.0,0.00024998,7]
[321675470,1712377840416,-154.148329,0.00024998,7]
[321675471,1712377840425,-167.830555,0.00024998,7]
[321675472,1712377840435,-238.209197,0.00024998,7]
[321675473,1712377840444,-238.209197,0.00024998,7]
[321675474,1712377840454,-151.0,0.00024998,7]
[321675475,1712377840464,-151.0,0.00024998,7]
[321675476,1712377840473,-238.209197,0.00024998,7]
[321675477,1712377840482,-238.209197,0.00024998,7]
[321675478,1712377840491,-151.0,0.00024998,7]
[321675479,1712377840501,-151.0,0.00024998,7]
[321675480,1712377840510,-151.0,0.00024998,7]
[321675482,1712377840519,-151.0,0.00024998,7]
[321675483,1712377840528,-151.0,0.00024998,7]
[321675485,1712377840537,-151.0,0.00024998,7]
[321675487,1712377840546,-151.0,0.00024998,7]
[321675489,1712377840555,-151.0,0.00024998,7]
[321675491,1712377840564,-151.0,0.00024998,7]
[321675493,1712377840573,-151.0,0.00024998,7]
[321675495,1712377840582,-151.0,0.00024998,7]
[321675497,1712377840591,-151.0,0.00024998,7]
[321675499,1712377840600,-151.0,0.00024998,7]
[321675501,1712377840609,-151.0,0.00024998,7]
[321675503,1712377840618,-151.0,0.00024998,7]
[321675505,1712377840627,-311.972638,0.00024998,3]
[321675507,1712377840636,-311.972638,0.00024998,3]
[321675509,1712377840646,-311.972638,0.00024998,3]
[321675511,1712377840654,-311.972638,0.00024998,3]
[321675513,1712377840663,-617.05,0.00024998,2]
[321675515,1712377840672,-151.0,0.00024998,7]
[321675517,1712377840681,-151.0,0.00024998,7]
[321675519,1712377840690,-151.0,0.00024998,7]
[321675521,1712377840699,-151.0,0.00024998,7]
[321675523,1712377840708,-151.0,0.00024998,7]
[321675525,1712377840717,-151.0,0.00024998,7]
[321675526,1712377840726,-151.0,0.00024998,7]
[321675528,1712377840734,-220.377396,0.00024998,7]
[321675530,1712377840744,-151.0,0.00024998,7]
[321675532,1712377840753,-151.0,0.00024998,7]
[321675534,1712377840762,-151.0,0.00024998,7]
[321675536,1712377840771,-151.0,0.00024998,7]
[321675538,1712377840780,-151.0,0.00024998,7]
[321675540,1712377840791,-151.0,0.00024998,7]
[321675542,1712377840800,-151.0,0.00024998,7]
[321675544,1712377840809,-151.0,0.00024998,7]
[321675546,1712377840818,-151.0,0.00024998,7]
[321675548,1712377840827,-500.0,0.00024998,2]
[321675550,1712377840836,-151.0,0.00024998,7]
[321675552,1712377840845,-151.0,0.00024998,7]
[321675554,1712377840854,-176.907366,0.00024998,7]
[321675556,1712377840863,-151.0,0.00024998,7]
[321675558,1712377840872,-151.0,0.00024998,7]
[321675560,1712377840881,-151.0,0.00024998,7]
[321675562,1712377840890,-151.0,0.00024998,7]
[321675564,1712377840899,-151.0,0.00024998,7]
[321675566,1712377840908,-151.0,0.00024998,7]
[321675568,1712377840918,-151.0,0.00024998,7]
[321675570,1712377840927,-151.0,0.00024998,7]
[321675572,1712377840936,-151.0,0.00024998,7]
[321675574,1712377840945,-151.0,0.00024998,7]
[321675576,1712377840954,-151.0,0.00024998,7]
[321675578,1712377840963,-151.0,0.00024998,7]
[321675580,1712377840973,-151.0,0.00024998,7]
[321675582,1712377840982,-151.0,0.00024998,7]
[321675584,1712377840991,-168.430366,0.00024998,7]
[321675586,1712377841000,-151.0,0.00024998,7]
[321675588,1712377841009,-151.0,0.00024998,7]
[321675590,1712377841018,-151.0,0.00024998,7]
[321675592,1712377841027,-151.0,0.00024998,7]
[321675594,1712377841036,-151.0,0.00024998,7]
[321675596,1712377841045,-500.0,0.00024998,2]
[321675598,1712377841055,-151.0,0.00024998,7]
[321675600,1712377841064,-151.0,0.00024998,7]
[321675602,1712377841073,-151.0,0.00024998,7]
[321675604,1712377841082,-151.0,0.00024998,7]
[321675606,1712377841091,-151.0,0.00024998,7]
[321675607,1712377841100,-151.0,0.00024998,7]
[321675610,1712377841110,-151.0,0.00024998,7]
[321675611,1712377841119,-287.081412,0.00024998,7]
[321675613,1712377841128,-151.0,0.00024998,7]
[321675615,1712377841141,-151.0,0.00024998,7]
[321675617,1712377841153,-151.0,0.00024998,7]
[321675619,1712377841162,-151.0,0.00024998,7]
[321675621,1712377841171,-299.225763,0.00024998,7]
[321675623,1712377841182,-299.225763,0.00024998,7]
[321675625,1712377841191,-299.225763,0.00024998,7]
[321675627,1712377841200,-151.0,0.00024998,7]
[321675629,1712377841209,-299.225763,0.00024998,7]
[321675631,1712377841218,-151.0,0.00024998,7]
[321675633,1712377841228,-151.0,0.00024998,7]
[321675635,1712377841237,-151.0,0.00024998,7]
[321675637,1712377841246,-151.0,0.00024998,7]
[321675639,1712377841255,-151.0,0.00024998,7]
[321675641,1712377841264,-151.0,0.00024998,7]
[321675643,1712377841273,-154.943746,0.00024998,7]
[321675645,1712377841282,-500.0,0.00024998,2]
[321675647,1712377841291,-151.0,0.00024998,7]
[321675649,1712377841300,-151.0,0.00024998,7]
[321675651,1712377841309,-500.0,0.00024998,2]
[321675653,1712377841318,-151.0,0.00024998,7]
[321675655,1712377841327,-151.0,0.00024998,7]
[321675657,1712377841336,-151.0,0.00024998,7]
[321675659,1712377841346,-151.0,0.00024998,7]
[321675661,1712377841354,-160.228767,0.00024998,7]
[321675663,1712377841363,-160.228767,0.00024998,7]
[321675665,1712377841372,-160.228767,0.00024998,7]
[321675667,1712377841381,-160.228767,0.00024998,7]
[321675669,1712377841391,-151.0,0.00024998,7]
[321675671,1712377841400,-151.0,0.00024998,7]
[321675673,1712377841408,-151.0,0.00024998,7]
[321675675,1712377841417,-151.0,0.00024998,7]
[321675676,1712377841426,-500.0,0.00024998,2]
[321675678,1712377841435,-151.0,0.00024998,7]
[321675680,1712377841443,-151.0,0.00024998,7]
[321675682,1712377841452,-151.0,0.00024998,7]
[321675684,1712377841461,-151.0,0.00024998,7]
[321675686,1712377841470,-500.0,0.00024998,2]
[321675688,1712377841479,-214.0,0.00024999,2]
[321675690,1712377841488,-354.0,0.00024999,2]
[321675692,1712377841496,-3291.0,0.00024999,2]
[321675694,1712377841505,-150.0,0.00024999,10]
[321675696,1712377841514,-150.0,0.00024999,10]
[321675698,1712377841523,-102685.83349487,0.00024999,2]
[321675700,1712377841532,-394.59277329,0.00024999,10]
[321675702,1712377841540,-444.98588362,0.00024999,2]
[321675704,1712377841549,-151.0,0.00024999,7]
[321675706,1712377841558,-151.0,0.00024999,7]
[321675708,1712377841567,-173.744499,0.00024999,7]
[321675709,1712377841574,-168.892886,0.00024999,7]
[321675710,1712377841583,-168.892886,0.00024999,7]
[321675711,1712377841591,-173.744499,0.00024999,7]
[321675712,1712377841600,-151.0,0.00024999,7]
[321675713,1712377841609,-151.0,0.00024999,7]
[321675714,1712377841618,-151.0,0.00024999,7]
[321675715,1712377841627,-151.0,0.00024999,7]
[321675716,1712377841636,-151.0,0.00024999,7]
[321675717,1712377841644,-151.0,0.00024999,7]
[321675718,1712377841653,-151.0,0.00024999,7]
[321675719,1712377841662,-151.0,0.00024999,7]
[321675720,1712377841670,-151.0,0.00024999,7]
[321675721,1712377841679,-2000.0,0.00024999,2]
[321675722,1712377841688,-151.0,0.00024999,7]
[321675723,1712377841697,-151.0,0.00024999,7]
[321675724,1712377841706,-151.0,0.00024999,7]
[321675725,1712377841715,-299.24446,0.00024999,7]
[321675726,1712377841724,-151.0,0.00024999,7]
[321675727,1712377841733,-151.0,0.00024999,7]
[321675728,1712377841742,-238.209197,0.00024999,7]
[321675729,1712377841752,-258.822431,0.00024999,7]
[321675730,1712377841761,-238.209197,0.00024999,7]
[321675731,1712377841770,-151.0,0.00024999,7]
[321675732,1712377841779,-151.0,0.00024999,7]
[321675733,1712377841789,-151.0,0.00024999,7]
[321675734,1712377841798,-151.0,0.00024999,7]
[321675735,1712377841807,-311.972638,0.00024999,3]
[321675736,1712377841816,-311.972638,0.00024999,3]
[321675737,1712377841826,-617.05,0.00024999,2]
[321675738,1712377841835,-617.05,0.00024999,2]
[321675739,1712377841844,-617.05,0.00024999,2]
[321675740,1712377841854,-617.05,0.00024999,2]
[321675741,1712377841863,-617.05,0.00024999,2]
[321675742,1712377841872,-617.05,0.00024999,2]
[321675743,1712377841881,-617.05,0.00024999,2]
[321675744,1712377842042,-617.05,0.00024999,2]
[321675745,1712377842051,-617.05,0.00024999,2]
[321675746,1712377842060,-617.05,0.00024999,2]
[321675747,1712377842070,-617.05,0.00024999,2]
[321675748,1712377842079,-617.05,0.00024999,2]
[321675749,1712377842088,-617.05,0.00024999,2]
[321675750,1712377842097,-617.05,0.00024999,2]
[321675751,1712377842106,-617.05,0.00024999,2]
[321675752,1712377842115,-617.05,0.00024999,2]
[321675753,1712377842124,-617.05,0.00024999,2]
[321675754,1712377842133,-617.05,0.00024999,2]
[321675755,1712377842147,-617.05,0.00024999,2]
[321675756,1712377842156,-617.10377787,0.00024999,2]
[321675757,1712377842166,-151.0,0.00024999,7]
[321675758,1712377842174,-151.0,0.00024999,7]
[321675759,1712377842184,-168.340444,0.00024999,7]
[321675760,1712377842193,-151.0,0.00024999,7]
[321675761,1712377842203,-500.0,0.00024999,2]
[321675762,1712377842212,-563.1171463,0.00024999,2]
[321675763,1712377842222,-151.0,0.00024999,7]
[321675764,1712377842231,-500.0,0.00024999,2]
[321675765,1712377842240,-500.0,0.00024999,2]
[321675766,1712377842249,-500.0,0.00024999,2]
[321675767,1712377842259,-342.17754833,0.00024999,2]
[321675768,1712377842268,-151.0,0.00024999,7]
[321675769,1712377842278,-151.0,0.00024999,7]
[321675770,1712377842287,-151.0,0.00024999,7]
[321675771,1712377842296,-151.0,0.00024999,7]
[321675772,1712377842307,-151.0,0.00024999,7]
[321675773,1712377842321,-151.0,0.00024999,7]
[321675774,1712377842330,-500.0,0.00024999,2]
[321675775,1712377842340,-500.0,0.00024999,2]
[321675776,1712377842349,-500.0,0.00024999,2]
[321675777,1712377842360,-500.0,0.00024999,2]
[321675778,1712377842369,-500.0,0.00024999,2]
[321675779,1712377842378,-500.0,0.00024999,2]
[321675780,1712377842388,-500.0,0.00024999,2]
[321675781,1712377842398,-500.0,0.00024999,2]
[321675782,1712377842407,-500.0,0.00024999,2]
[321675783,1712377842417,-500.0,0.00024999,2]
[321675784,1712377842426,-500.0,0.00024999,2]
[321675785,1712377842436,-500.0,0.00024999,2]
[321675786,1712377842446,-151.0,0.00024999,7]
[321675787,1712377842456,-500.0,0.00024999,2]
[321675788,1712377842465,-500.0,0.00024999,2]
[321675789,1712377842474,-500.0,0.00024999,2]
[321675790,1712377842484,-577.89291166,0.00024999,2]
[321675791,1712377842493,-151.0,0.00024999,7]
[321675792,1712377842502,-620.83,0.00024999,2]
[321675793,1712377842512,-620.83,0.00024999,2]
[321675794,1712377842521,-620.83,0.00024999,2]
[321675795,1712377842530,-620.83,0.00024999,2]
[321675796,1712377842539,-620.83,0.00024999,2]
[321675797,1712377842548,-620.83,0.00024999,2]
[321675798,1712377842557,-620.83,0.00024999,2]
[321675799,1712377842567,-620.83,0.00024999,2]
[321675800,1712377842576,-620.83,0.00024999,2]
[321675801,1712377842585,-620.83,0.00024999,2]
[321675802,1712377842594,-620.83,0.00024999,2]
[321675803,1712377842603,-620.83,0.00024999,2]
[321675804,1712377842612,-620.83,0.00024999,2]
[321675805,1712377842622,-620.83,0.00024999,2]
[321675806,1712377842631,-620.83,0.00024999,2]
[321675807,1712377842639,-620.83,0.00024999,2]
[321675808,1712377842649,-620.83,0.00024999,2]
[321675809,1712377842658,-620.83,0.00024999,2]
[321675810,1712377842667,-620.83,0.00024999,2]
[321675811,1712377842676,-620.91,0.00024999,2]
[321675812,1712377842685,-151.0,0.00024999,7]
[321675813,1712377842694,-151.0,0.00024999,7]
[321675814,1712377842703,-500.0,0.00024999,2]
[321675815,1712377842713,-500.0,0.00024999,2]
[321675816,1712377842722,-500.0,0.00024999,2]
[321675817,1712377842731,-500.0,0.00024999,2]
[321675818,1712377842740,-500.0,0.00024999,2]
[321675819,1712377842750,-500.0,0.00024999,2]
[321675820,1712377842759,-500.0,0.00024999,2]
[321675821,1712377842769,-500.0,0.00024999,2]
[321675822,1712377842778,-500.0,0.00024999,2]
[321675823,1712377842787,-299.225763,0.00024999,7]
[321675824,1712377842796,-500.0,0.00024999,2]
[321675825,1712377842806,-500.0,0.00024999,2]
[321675826,1712377842815,-500.0,0.00024999,2]
[321675827,1712377842825,-500.0,0.00024999,2]
[321675828,1712377842834,-500.0,0.00024999,2]
[321675830,1712377842844,-500.0,0.00024999,2]
[321675831,1712377842853,-500.0,0.00024999,2]
[321675832,1712377842863,-299.225763,0.00024999,7]
[321675833,1712377842872,-560.61106056,0.00024999,2]
[321675834,1712377842881,-151.0,0.00024999,7]
[321675835,1712377842890,-151.0,0.00024999,7]
[321675836,1712377842899,-151.0,0.00024999,7]
[321675837,1712377842908,-500.0,0.00024999,2]
[321675838,1712377842917,-500.0,0.00024999,2]
[321675839,1712377842926,-500.0,0.00024999,2]
[321675840,1712377842934,-500.0,0.00024999,2]
[321675842,1712377842943,-500.0,0.00024999,2]
[321675844,1712377842952,-500.0,0.00024999,2]
[321675846,1712377842961,-500.0,0.00024999,2]
[321675848,1712377842970,-607.3476227,0.00024999,2]
[321675849,1712377842979,-500.0,0.00024999,2]
[321675850,1712377842987,-566.97489406,0.00024999,2]
[321675851,1712377842997,-151.0,0.00024999,7]
[321675852,1712377843006,-160.228767,0.00024999,7]
[321675853,1712377843015,-160.228767,0.00024999,7]
[321675854,1712377843024,-151.0,0.00024999,7]
[321675855,1712377843033,-227.272889,0.00024999,7]
[321675856,1712377843041,-355.15562258,0.00024999,2]
[321675857,1712377843050,-507.2989687,0.00024999,2]
[321675858,1712377843059,-151.0,0.00024999,7]
[321675859,1712377843069,-500.80143589,0.00024999,2]
[321675860,1712377843079,-238986.83609561,0.00025,3]
[321675861,1712377843097,-25355.60252036,0.00025,3]
[321675862,1712377843212,-173.338122,0.00024998,7]
[321675863,1712377843222,-119.82391403,0.00024998,7]
[321675864,1712377843239,-53.51420797,0.00024998,7]
[321675865,1712377843248,-173.338122,0.00024999,7]
[321675866,1712377843257,-1621.87116263,0.00025,3]
[321675867,1712377843268,-264.33532963,0.00025,3]
[321675868,1712377843283,-719.45778071,0.00025,3]
[321675869,1712377843508,-691.753268,0.00024798,2]
[321675870,1712377843577,-2.49283305,0.00024798,2]
[321675871,1712377843601,-1005.31244303,0.00024798,2]
[321675887,1712377846002,-1155.79324561,0.00024798,2]
[321675888,1712377846109,-1000.9668,0.00024798,2]
[321675889,1712377846165,-522.55501031,0.00024798,2]
[321675890,1712377846175,-173.338122,0.00024998,7]
[321675891,1712377846184,-173.338122,0.00024998,7]
[321675892,1712377846194,-173.338122,0.00024999,7]
[321675893,1712377846205,-3275.19731939,0.00025,3]
[321675899,1712378099371,165.82604737,0.00024998,30]
[321675920,1712379032207,-259.1,0.00021823,2]
[321675921,1712379032314,-240.9,0.00021823,2]
[321675922,1712379032323,-46.47338502,0.00021824,2]
[321675923,1712379032335,-623.77940125,0.00021824,2]
[321675924,1712379032344,-616.10387061,0.00021825,2]
[321675925,1712379032354,-235.74,0.00021834,2]
[321675926,1712379032363,-14967.5804461,0.00022,2]
[321675927,1712379032374,-306.87494845,0.00023659,2]
[321675928,1712379032384,-553.34,0.0002366,2]
[321675929,1712379032393,-506.25,0.00023697,2]
[321675930,1712379032403,-250.0,0.00023706,2]
[321675931,1712379032413,-415.52,0.0002371,2]
[321675932,1712379032422,-1000.0,0.00023819,2]
[321675933,1712379032431,-152.83,0.00023879,2]
[321675934,1712379032440,-152.83,0.00024003,2]
[321675935,1712379032451,-235.74,0.00024098,2]
[321675936,1712379032460,-152.83,0.00024128,2]
[321675937,1712379032471,-161.11946746,0.00024192,2]
[321675938,1712379032481,-152.83,0.00024252,2]
[321675939,1712379032492,-152.83,0.00024377,2]
[321675940,1712379032505,-1056.16962943,0.00024498,2]
[321675941,1712379032516,-1119.91661663,0.00024498,2]
[321675942,1712379032526,-1028.87828452,0.000245,2]
[321675943,1712379032536,-152.83,0.00024501,2]
[321675944,1712379032546,-152.83,0.00024626,2]
[321675945,1712379032556,-152.83,0.0002475,2]
[321675946,1712379032566,-500.0,0.00024799,2]
[321675947,1712379032577,-2500.0,0.000248,2]
[321675948,1712379032586,-707.0,0.000248,2]
[321675949,1712379032597,-250.19706463,0.000248,2]
[321675950,1712379032607,-1227.4775503,0.000248,2]
[321675951,1712379032619,-344.60766456,0.000248,2]
[321675952,1712379032627,-250.19706463,0.00024811,2]
[321675953,1712379032636,-1227.47755027,0.00024811,2]
[321675954,1712379032645,-300.0,0.00024816,2]
[321675955,1712379032656,-250.19706463,0.00024822,2]
[321675956,1712379032665,-1227.47755027,0.00024822,2]
[321675957,1712379032674,-250.19706463,0.00024833,2]
[321675958,1712379032684,-1227.47755027,0.00024833,2]
[321675960,1712379032697,-344.8791706,0.00024843,2]
[321675962,1712379032706,-250.19706463,0.00024844,2]
[321675964,1712379032716,-1227.47755027,0.00024844,2]
[321675966,1712379032725,-250.19706463,0.00024856,2]
[321675968,1712379032734,-1227.47755027,0.00024856,2]
[321675970,1712379032743,-344.8791706,0.00024857,2]
[321675972,1712379032753,-250.19706463,0.00024867,2]
[321675974,1712379032762,-1227.47755027,0.00024867,2]
[321675976,1712379032771,-344.8791706,0.00024871,2]
[321675978,1712379032780,-152.83,0.00024874,2]
[321675980,1712379032789,-250.19706463,0.00024878,2]
[321675981,1712379032798,-1227.47755027,0.00024878,2]
[321675982,1712379032808,-344.8791706,0.00024886,2]
[321675983,1712379032817,-250.19706463,0.00024889,2]
[321675984,1712379032827,-1227.47755027,0.00024889,2]
[321675985,1712379032836,-431888.27902508,0.00024896,2]
[321675986,1712379032849,-82982.30087,0.00024896,2]
[321675987,1712379032870,-5612.88068334,0.00024896,2]
[321675988,1712379038530,-185.59839529,0.000248,2]
[321675989,1712379038541,-185.59839527,0.00024824,2]
[321675990,1712379038551,-880398.92695205,0.00024896,2]
[321675991,1712379038566,-1496859.93807369,0.00024896,2]
[321676036,1712379043295,-185.59839527,0.00024847,2]
[321676037,1712379043305,-2286.95163603,0.00024896,2]
[321676038,1712379043456,-2648.86989447,0.00024896,2]
[321676039,1712379043697,-0.39119035,0.00024896,2]
[321676040,1712379043710,-4021.46638317,0.00024896,2]
[321676059,1712379046600,-599.27979208,0.00024896,2]
[321676060,1712379102301,-151.0,0.00031076,120]
[321676062,1712379228117,1648.9042482,0.0002,2]
[321676063,1712379366736,155.0,0.0002197,3]
[321676064,1712379414156,1450.0,0.00021,3]
[321676067,1712380150847,-1042.67964763,0.00021933,2]
[321676068,1712380150868,-233.25489494,0.00021934,2]
[321676069,1712380150890,-724.06545743,0.00021935,2]
[321676091,1712380232795,-500.0,0.00021932,2]
[321676092,1712380232805,-1311.65220197,0.00021935,2]
[321676093,1712380232815,-224.06545743,0.00021941,2]
[321676094,1712380232827,-13.37454257,0.00021941,2]
[321676095,1712380232838,-531.22545743,0.00023,3]
[321676123,1712380238406,-259.48,0.00023,3]
[321676125,1712380243433,-709.29454257,0.00023,3]